bitfinex-derivatives/quotes_BTCF0:USTF0_20251129
["timestamp","ask_amount","ask_price","bid_price","bid_amount"]
[1764409818771,0.45563918,90654.0,90653.0,0.00016552]
[1764409821471,0.45563918,90654.0,90641.0,0.04532]
[1764409821472,0.0654207,90642.0,90641.0,0.04532]
[1764409821670,0.0677011,90639.0,90638.0,0.3608]
[1764409822568,0.0677011,90639.0,90638.0,0.38383]
[1764409822775,0.0697011,90639.0,90638.0,0.40612]
[1764409823474,0.0557811,90639.0,90638.0,0.40612]
[1764409823676,0.0557811,90639.0,90638.0,0.41821512]
[1764409824261,0.04475,90639.0,90638.0,0.41821512]
[1764409824468,0.03217,90648.0,90647.0,0.04532]
[1764409824768,0.05378,90648.0,90647.0,0.04532]
[1764409825174,0.04275,90648.0,90647.0,0.39532]
[1764409825472,0.02114,90648.0,90647.0,0.75612]
[1764409825675,0.01803,90648.0,90647.0,0.75612]
[1764409825870,0.007,90648.0,90647.0,0.75612]
[1764409826167,0.003,90648.0,90647.0,0.75612]
[1764409826367,0.002,90648.0,90647.0,0.75612]
[1764409828484,0.02436,90648.0,90647.0,0.75612]
[1764409829169,0.02436,90648.0,90647.0,0.8157]
[1764409832577,0.04622,90648.0,90647.0,0.8157]
[1764409832876,0.04622,90648.0,90644.0,0.05958]
[1764409832877,0.0110301,90647.0,90644.0,0.05958]
[1764409833076,0.04422,90645.0,90644.0,0.15289]
[1764409834179,0.04422,90645.0,90644.0,0.09331]
[1764409834484,0.04422,90645.0,90644.0,0.15289]
[1764409834876,0.04622,90645.0,90644.0,0.15289]
[1764409835383,0.06936045,90645.0,90644.0,0.09331]
[1764409835981,0.06936045,90645.0,90644.0,0.43331]
[1764409838983,0.06936045,90645.0,90644.0,0.04331]
[1764409844390,0.06936045,90645.0,90644.0,0.02126]
[1764409844990,0.06936045,90645.0,90644.0,0.04331]
[1764409845392,0.04622,90645.0,90644.0,0.10289]
[1764409853198,0.04622,90645.0,90644.0,0.04331]
[1764409861407,0.05952,90645.0,90644.0,0.04331]
[1764409861596,0.05763,90639.0,90638.0,0.05520512]
[1764409863113,0.05963,90639.0,90638.0,0.05520512]
[1764409866515,0.05763,90639.0,90638.0,0.05520512]
[1764409866702,0.05963,90639.0,90638.0,0.05520512]
[1764409867104,0.002,90639.0,90638.0,0.05520512]
[1764409867704,0.0553599,90649.0,90648.0,0.04311]
[1764409869016,0.0553599,90649.0,90648.0,0.05414]
[1764409869221,0.0583599,90649.0,90648.0,0.05414]
[1764409869511,0.02421,90649.0,90648.0,0.06659]
[1764409869703,0.0140299,90649.0,90648.0,0.06659]
[1764409869907,0.003,90649.0,90648.0,0.06659]
[1764409873120,0.04733,90649.0,90648.0,0.06659]
[1764409876010,0.04733,90649.0,90648.0,0.07850934]
[1764409879324,0.04733,90649.0,90648.0,0.05502934]
[1764409900139,0.04733,90649.0,90648.0,0.1344712]
[1764409901541,0.003,90649.0,90648.0,0.1473712]
[1764409901735,0.0566885,90660.0,90648.0,0.02481934]
[1764409901941,0.04566,90660.0,90659.0,0.0561886]
[1764409903434,0.04566,90660.0,90659.0,0.04516]
[1764409903632,0.04766,90660.0,90659.0,0.04516]
[1764409904037,0.04666,90660.0,90659.0,0.04516]
[1764409904342,0.05066,90660.0,90659.0,0.04516]
[1764409906435,0.02792,90660.0,90659.0,0.04516]
[1764409906637,0.05066,90660.0,90659.0,0.04516]
[1764409910538,0.05066,90660.0,90659.0,0.40596]
[1764409910737,0.05066,90660.0,90659.0,0.418017]
[1764409911939,0.02792,90660.0,90659.0,0.418017]
[1764409912144,0.05066,90660.0,90659.0,0.418017]
[1764409920151,0.06449,90660.0,90659.0,0.418017]
[1764409925446,0.05066,90660.0,90659.0,0.418017]
[1764409927256,0.06449,90660.0,90659.0,0.418017]
[1764409928357,0.05066,90660.0,90659.0,0.418017]
[1764409930258,0.06449,90660.0,90659.0,0.418017]
[1764409930657,0.05066,90660.0,90659.0,0.418017]
[1764409933162,0.07328322,90660.0,90659.0,0.418017]
[1764409934556,0.07328322,90660.0,90659.0,0.057217]
[1764409934757,0.07328322,90660.0,90659.0,0.418017]
[1764409935463,0.05066,90660.0,90659.0,0.418017]
[1764409943568,0.05066,90660.0,90659.0,0.057217]
[1764409953373,0.06253,90660.0,90659.0,0.012057]
[1764409953667,0.05661,90658.0,90657.0,0.4056]
[1764409954573,0.05661,90658.0,90657.0,0.41748931]
[1764409954772,0.05761,90658.0,90657.0,0.41748931]
[1764409954962,0.05961,90658.0,90657.0,0.41748931]
[1764409955776,0.05961,90658.0,90657.0,0.39525931]
[1764409956170,0.05961,90658.0,90657.0,0.41748931]
[1764409957478,0.05961,90658.0,90657.0,0.05668931]
[1764409957679,0.05961,90658.0,90657.0,0.11623723]
[1764409958877,0.05961,90658.0,90657.0,0.05668931]
[1764409964785,0.05961,90658.0,90657.0,0.43668931]
[1764409972801,0.05861,90658.0,90657.0,0.43668931]
[1764409972999,0.05861,90658.0,90657.0,0.12668931]
[1764409975402,0.08111961,90658.0,90657.0,0.12668931]
[1764409981898,0.08111961,90658.0,90657.0,0.13771821]
[1764409982607,0.0549994,90653.0,90652.0,0.3608]
[1764409982903,0.0549994,90653.0,90650.0,0.05970333]
[1764409982904,0.04397,90651.0,90650.0,0.00016543]
[1764409983100,0.49647961,90651.0,90650.0,0.00016543]
[1764409984508,0.49847961,90651.0,90650.0,0.00216543]
[1764409986005,0.49647961,90651.0,90650.0,0.00016543]
[1764409986208,0.49947961,90651.0,90650.0,0.00216543]
[1764409992215,0.47697,90651.0,90650.0,0.00216543]
[1764409992707,0.47697,90651.0,90650.0,0.02346543]
[1764409992912,0.47697,90651.0,90650.0,0.04491543]
[1764409998115,0.19697,90651.0,90650.0,0.04491543]
[1764410004526,0.21960871,90651.0,90650.0,0.04491543]
[1764410009728,0.06960871,90651.0,90650.0,0.04491543]
[1764410010028,0.04697,90651.0,90650.0,0.04491543]
[1764410011331,0.04697,90651.0,90650.0,0.10445333]
[1764410012319,0.04697,90651.0,90650.0,0.04491543]
[1764410014632,0.04697,90651.0,90650.0,0.45491543]
[1764410014838,0.02582,90651.0,90650.0,0.45491543]
[1764410015334,0.07091628,90651.0,90650.0,0.45491543]
[1764410021734,0.02559628,90651.0,90650.0,0.45491543]
[1764410022328,0.003,90651.0,90650.0,0.45491543]
[1764410023037,0.40519,90661.0,90660.0,0.0452]
[1764410023233,0.42777529,90661.0,90660.0,0.0452]
[1764410023436,0.43880369,90661.0,90660.0,0.0562285]
[1764410024531,0.44080369,90661.0,90660.0,0.0572285]
[1764410025431,0.4182184,90661.0,90660.0,0.0572285]
[1764410027538,0.0574184,90661.0,90660.0,0.0572285]
[1764410028534,0.0574184,90661.0,90660.0,0.05762975]
[1764410030944,0.04639,90661.0,90660.0,0.05762975]
[1764410032843,0.0574184,90661.0,90660.0,0.05762975]
[1764410040448,0.0574184,90661.0,90660.0,0.01242975]
[1764410040648,0.0574184,90661.0,90660.0,0.03393975]
[1764410040845,0.0574184,90661.0,90660.0,0.05708975]
[1764410041753,0.0574184,90661.0,90660.0,0.01242975]
[1764410042250,0.0574184,90661.0,90660.0,0.03393975]
[1764410042451,0.0574184,90661.0,90660.0,0.05708975]
[1764410045249,0.07993131,90661.0,90660.0,0.01242975]
[1764410045937,0.07993131,90661.0,90660.0,0.03393975]
[1764410046140,0.07993131,90661.0,90660.0,0.05708975]
[1764410048046,0.07993131,90661.0,90660.0,0.001]
[1764410049549,0.47993131,90661.0,90660.0,0.001]
[1764410049756,0.0655796,90651.0,90650.0,0.00016543]
[1764410050150,0.08810386,90651.0,90650.0,0.00016543]
[1764410051757,0.08810386,90651.0,90650.0,0.00316543]
[1764410051758,0.46810386,90651.0,90650.0,0.00316543]
[1764410051951,0.85010386,90651.0,90650.0,0.00316543]
[1764410052643,0.0542106,90643.0,90642.0,0.01182711]
[1764410052850,0.0672418,90633.0,90632.0,0.10417984]
[1764410053049,0.0672418,90633.0,90632.0,0.50417984]
[1764410053249,0.0672418,90633.0,90632.0,0.44466]
[1764410053858,0.0672418,90633.0,90632.0,0.42151]
[1764410054651,0.0672418,90633.0,90632.0,0.44566]
[1764410055449,0.0692418,90633.0,90632.0,0.44966]
[1764410076273,0.0562118,90633.0,90632.0,0.44966]
[1764410078284,0.0562118,90633.0,90632.0,0.50917984]
[1764410079284,0.0562118,90633.0,90632.0,0.44966]
[1764410095296,0.07898624,90633.0,90632.0,0.44966]
[1764410097301,0.07898624,90633.0,90632.0,0.50917645]
[1764410099304,0.07898624,90633.0,90632.0,0.44966]
[1764410100196,0.0562118,90633.0,90632.0,0.44966]
[1764410100794,0.002,90633.0,90632.0,0.46234]
[1764410101502,0.00016543,90642.0,90641.0,0.04438]
[1764410101796,0.00016543,90642.0,90641.0,0.81518]
[1764410102001,0.00016543,90642.0,90641.0,0.8262108]
[1764410103006,0.00216543,90642.0,90641.0,0.8282108]
[1764410104703,0.00216543,90642.0,90641.0,0.8272108]
[1764410104910,0.00216543,90642.0,90641.0,0.8282108]
[1764410105602,0.00216543,90642.0,90641.0,0.88662229]
[1764410106302,0.00216543,90642.0,90641.0,0.83879531]
[1764410108905,0.00216543,90642.0,90641.0,0.42776451]
[1764410108906,0.02382543,90642.0,90641.0,0.42776451]
[1764410109106,0.04566543,90642.0,90641.0,0.42776451]
[1764410117821,0.04566543,90642.0,90641.0,0.06696451]
[1764410118318,0.04566543,90642.0,90641.0,0.07799531]
[1764410118515,0.04566543,90642.0,90641.0,0.06696451]
[1764410124429,0.04566543,90642.0,90641.0,0.32696451]
[1764410127127,0.04566543,90642.0,90641.0,0.07696451]
[1764410127731,0.04566543,90642.0,90641.0,0.05696451]
[1764410128035,0.04566543,90642.0,90641.0,0.44696451]
[1764410130733,0.04566543,90642.0,90641.0,0.19696451]
[1764410132934,0.04566543,90642.0,90641.0,0.43696451]
[1764410134136,0.02382543,90642.0,90641.0,0.43696451]
[1764410139231,0.02382543,90642.0,90641.0,0.43166451]
[1764410145939,0.04687543,90642.0,90641.0,0.43166451]
[1764410146528,0.04687543,90642.0,90641.0,0.09166451]
[1764410148422,0.05972543,90642.0,90641.0,0.05166451]
[1764410150837,0.05972543,90642.0,90641.0,0.01686]
[1764410151043,0.92252222,90642.0,90641.0,0.001]
[1764410152440,0.05865,90633.0,90632.0,0.10270612]
[1764410152640,0.05865,90633.0,90632.0,0.53270612]
[1764410153636,0.05865,90633.0,90632.0,0.53370612]
[1764410153837,0.06065,90633.0,90632.0,0.53770612]
[1764410154035,0.06065,90633.0,90632.0,0.47816]
[1764410154643,0.06065,90633.0,90632.0,0.48953661]
[1764410154936,0.06065,90633.0,90632.0,0.48853661]
[1764410155142,0.05865,90633.0,90632.0,0.48453661]
[1764410155338,0.08343187,90633.0,90632.0,0.48653661]
[1764410155730,0.08143187,90633.0,90632.0,0.48453661]
[1764410155938,0.08443187,90633.0,90632.0,0.48653661]
[1764410156337,0.08143187,90633.0,90632.0,0.48453661]
[1764410156538,0.08543187,90633.0,90632.0,0.48553661]
[1764410159249,0.06265,90633.0,90632.0,0.48553661]
[1764410160547,0.46265,90633.0,90632.0,0.0225]
[1764410160745,0.48538735,90633.0,90632.0,0.001]
[1764410161250,0.48538735,90633.0,90632.0,0.02388]
[1764410161748,0.48538735,90633.0,90632.0,0.04678]
[1764410164444,0.05873,90627.0,90626.0,0.38368]
[1764410164745,0.45249985,90627.0,90626.0,0.37240301]
[1764410164952,0.45249985,90627.0,90626.0,0.39528301]
[1764410165140,0.45249985,90627.0,90626.0,0.41818301]
[1764410165342,0.4297625,90627.0,90626.0,0.05738301]
[1764410165643,0.4317625,90627.0,90626.0,0.05938301]
[1764410167236,0.0717625,90627.0,90626.0,0.05938301]
[1764410167556,0.0757625,90627.0,90626.0,0.05838301]
[1764410168150,0.0757625,90627.0,90626.0,0.05738301]
[1764410180260,0.0757625,90627.0,90626.0,0.11692913]
[1764410185365,0.0757625,90627.0,90626.0,0.05738301]
[1764410186356,0.0757625,90627.0,90626.0,0.11692913]
[1764410186559,0.4357625,90627.0,90626.0,0.10532612]
[1764410187566,0.4357625,90627.0,90626.0,0.08242612]
[1764410187960,0.4357625,90627.0,90626.0,0.05954612]
[1764410189368,0.04445,90625.0,90624.0,0.03244791]
[1764410189668,0.41445,90625.0,90624.0,0.03244791]
[1764410189870,0.41445,90625.0,90624.0,0.05385791]
[1764410190960,0.42045,90625.0,90624.0,0.05385791]
[1764410191762,0.22045,90625.0,90624.0,0.05385791]
[1764410192272,0.02793,90625.0,90624.0,0.05385791]
[1764410192771,0.05045,90625.0,90624.0,0.05385791]
[1764410196874,0.006,90625.0,90624.0,0.05385791]
[1764410197373,0.02793,90625.0,90624.0,0.05385791]
[1764410197571,0.05045,90625.0,90624.0,0.05385791]
[1764410205380,0.07317583,90625.0,90624.0,0.11345649]
[1764410208882,0.07317583,90625.0,90624.0,0.05385791]
[1764410215383,0.05045,90625.0,90624.0,0.05385791]
[1764410226784,0.05045,90625.0,90624.0,0.01137791]
[1764410226985,0.05045,90625.0,90623.0,0.00016543]
[1764410226986,0.0673529,90624.0,90623.0,0.00016543]
[1764410227192,0.09007797,90624.0,90623.0,0.00016543]
[1764410227795,0.48007797,90624.0,90623.0,0.00016543]
[1764410228391,0.48007797,90624.0,90623.0,0.05975039]
[1764410229383,0.4573529,90624.0,90623.0,0.05975039]
[1764410229587,0.4633529,90624.0,90623.0,0.05975039]
[1764410233395,0.4633529,90624.0,90623.0,0.00016543]
[1764410235402,0.4633529,90624.0,90623.0,0.05975039]
[1764410243802,0.4633529,90624.0,90623.0,0.08223039]
[1764410245096,0.4633529,90624.0,90623.0,0.05975039]
[1764410245508,0.48606849,90624.0,90623.0,0.00016543]
[1764410252917,1.46606849,90624.0,90623.0,0.00016543]
[1764410254603,0.0670834,90620.0,90619.0,0.01126812]
[1764410254809,0.0670834,90620.0,90615.0,0.42038496]
[1764410254810,0.0670839,90616.0,90615.0,0.42038496]
[1764410255010,0.08979949,90616.0,90615.0,0.42038496]
[1764410255209,0.08979949,90616.0,90615.0,0.44219496]
[1764410255401,0.0670839,90616.0,90615.0,0.38261]
[1764410255603,0.0670839,90616.0,90615.0,0.40397]
[1764410257011,0.0670839,90616.0,90615.0,0.41529465]
[1764410257207,0.0670839,90616.0,90615.0,0.39393465]
[1764410257407,0.0710839,90616.0,90615.0,0.37312465]
[1764410258016,0.0710839,90616.0,90615.0,0.38361]
[1764410258818,0.0710839,90616.0,90615.0,0.40497]
[1764410260021,0.02516,90616.0,90615.0,0.40497]
[1764410260313,0.004,90616.0,90615.0,0.40497]
[1764410260515,0.02516,90616.0,90615.0,0.40497]
[1764410261321,0.04669,90616.0,90615.0,0.40497]
[1764410261921,0.004,90616.0,90615.0,0.41538]
[1764410263019,0.004,90616.0,90615.0,0.49482821]
[1764410265418,0.004,90616.0,90615.0,0.41538]
[1764410272030,0.02516,90616.0,90615.0,0.41538]
[1764410274030,0.04669,90616.0,90615.0,0.40497]
[1764410275415,0.04669,90616.0,90615.0,0.48441821]
[1764410275929,0.004,90616.0,90615.0,0.49482821]
[1764410277430,0.004,90616.0,90615.0,0.41538]
[1764410279235,0.004,90616.0,90615.0,0.05458]
[1764410281535,0.02624,90616.0,90615.0,0.05458]
[1764410281838,0.0150339,90616.0,90615.0,0.05458]
[1764410282039,0.0150339,90616.0,90615.0,0.44458]
[1764410283443,0.0595439,90616.0,90615.0,0.44458]
[1764410283641,0.0595439,90616.0,90615.0,0.43417]
[1764410290039,0.0595439,90616.0,90615.0,0.04417]
[1764410290830,0.0595439,90616.0,90615.0,0.055204]
[1764410291035,0.0595439,90616.0,90615.0,0.04417]
[1764410306446,0.0595439,90616.0,90615.0,0.001]
[1764410306947,0.0595439,90616.0,90615.0,0.02319]
[1764410307343,0.0595439,90616.0,90615.0,0.04475]
[1764410334767,0.0734439,90616.0,90615.0,0.04475]
[1764410335872,1.0534439,90616.0,90615.0,0.04475]
[1764410338679,0.0734439,90616.0,90615.0,0.04475]
[1764410339080,1.0534439,90616.0,90615.0,0.04475]
[1764410344180,1.02851,90616.0,90615.0,0.04475]
[1764410344385,0.04851,90616.0,90615.0,0.04475]
[1764410345279,0.04851,90616.0,90615.0,0.12422273]
[1764410345490,0.04851,90616.0,90615.0,0.04475]
[1764410350000,0.06127,90616.0,90615.0,0.04475]
[1764410370810,0.06127,90616.0,90615.0,0.42475]
[1764410384914,0.06127,90616.0,90615.0,0.04475]
[1764410395833,0.04851,90616.0,90615.0,0.055784]
[1764410397132,0.04851,90616.0,90615.0,0.04475]
[1764410397328,0.06158,90616.0,90615.0,0.04475]
[1764410403941,0.06158,90616.0,90615.0,0.02319]
[1764410404138,0.06158,90616.0,90615.0,0.001]
[1764410404641,0.06158,90616.0,90615.0,0.02284]
[1764410406435,0.06158,90616.0,90615.0,0.10231596]
[1764410409433,0.06158,90616.0,90615.0,0.12385596]
[1764410410549,0.04851,90616.0,90615.0,0.12385596]
[1764410415353,0.04851,90616.0,90615.0,0.13488996]
[1764410429270,0.04851,90616.0,90615.0,0.055414]
[1764410441176,0.04851,90616.0,90615.0,0.04438]
[1764410441376,0.04851,90616.0,90615.0,0.055414]
[1764410441671,0.06164,90616.0,90615.0,0.04438]
[1764410442473,0.06164,90616.0,90615.0,0.001]
[1764410443272,0.08426694,90616.0,90615.0,0.001]
[1764410443474,0.0451,90607.0,90606.0,0.00044144]
[1764410444271,0.0451,90607.0,90606.0,0.01186335]
[1764410444472,0.0451,90607.0,90606.0,0.00044144]
[1764410444672,0.0451,90607.0,90606.0,0.00244144]
[1764410444872,0.0471,90607.0,90606.0,0.00244144]
[1764410445678,0.0471,90607.0,90606.0,0.0819225]
[1764410445881,0.0692651,90606.0,90605.0,0.07468159]
[1764410446268,0.0561355,90603.0,90602.0,0.00013443]
[1764410446469,0.0561355,90603.0,90602.0,0.41013443]
[1764410447381,0.0581355,90603.0,90602.0,0.41013443]
[1764410447878,0.0581355,90603.0,90602.0,0.00113443]
[1764410448076,0.0581355,90603.0,90602.0,0.04113443]
[1764410448982,0.0581355,90603.0,90602.0,0.0522003]
[1764410456984,0.0581355,90603.0,90602.0,0.2622003]
[1764410457986,0.0581355,90603.0,90602.0,0.2846403]
[1764410458680,0.0581355,90603.0,90602.0,0.3073303]
[1764410461084,0.0471,90603.0,90602.0,0.3073303]
[1764410463392,0.0471,90603.0,90602.0,0.3063303]
[1764410463692,0.02453,90603.0,90602.0,0.3063303]
[1764410463884,0.02653,90603.0,90602.0,0.3063303]
[1764410464083,0.04953,90603.0,90602.0,0.3063303]
[1764410465894,0.04553,90603.0,90602.0,0.3063303]
[1764410466089,0.04953,90603.0,90602.0,0.3063303]
[1764410466598,0.004,90603.0,90602.0,0.3063303]
[1764410466788,0.02518,90603.0,90602.0,0.3063303]
[1764410467095,0.04818,90603.0,90602.0,0.3063303]
[1764410468699,0.0592155,90603.0,90602.0,0.3063303]
[1764410468894,0.0592155,90603.0,90602.0,0.38570181]
[1764410468895,0.04818,90603.0,90602.0,0.38570181]
[1764410469197,0.04918,90603.0,90602.0,0.38570181]
[1764410469793,0.005,90603.0,90602.0,0.38570181]
[1764410471294,0.005,90603.0,90602.0,0.3063303]
[1764410473301,0.005,90603.0,90602.0,0.6671303]
[1764410475107,0.00016552,90616.0,90615.0,0.062744]
[1764410475297,0.00016552,90616.0,90615.0,0.412744]
[1764410475902,0.02134552,90616.0,90615.0,0.412744]
[1764410476097,0.03034552,90616.0,90615.0,0.412744]
[1764410477305,0.03034552,90616.0,90615.0,0.47230944]
[1764410478411,0.00916552,90616.0,90615.0,0.47230944]
[1764410479709,0.02019942,90616.0,90615.0,0.47230944]
[1764410480410,0.04160942,90616.0,90615.0,0.412744]
[1764410482708,0.06371942,90616.0,90615.0,0.412744]
[1764410483015,0.06371942,90616.0,90615.0,0.406674]
[1764410483513,0.06371942,90616.0,90615.0,0.418071]
[1764410484417,0.06371942,90616.0,90615.0,0.407037]
[1764410493030,0.06371942,90616.0,90615.0,0.057037]
[1764410493730,0.06371942,90616.0,90615.0,0.068071]
[1764410494030,0.06371942,90616.0,90615.0,0.057037]
[1764410498532,0.07695942,90616.0,90615.0,0.057037]
[1764410513638,0.06371942,90616.0,90615.0,0.068071]
[1764410518534,0.07684942,90616.0,90615.0,0.011397]
[1764410518739,0.0561442,90613.0,90612.0,0.40538]
[1764410519846,0.0601442,90613.0,90612.0,0.40738]
[1764410522247,0.0601442,90613.0,90612.0,0.38528]
[1764410522845,0.0601442,90613.0,90612.0,0.40738]
[1764410524046,0.0601442,90613.0,90612.0,0.04658]
[1764410525539,0.08288699,90613.0,90612.0,0.10617654]
[1764410528143,0.08288699,90613.0,90612.0,0.002]
[1764410535147,0.45288699,90613.0,90612.0,0.002]
[1764410535347,0.04511,90604.0,90603.0,0.05959654]
[1764410535552,0.0692755,90603.0,90597.0,0.07946901]
[1764410535745,0.0692755,90603.0,90599.0,0.01103464]
[1764410537057,0.0702755,90603.0,90602.0,0.00113443]
[1764410537357,0.0702755,90603.0,90602.0,0.06067578]
[1764410539353,0.0702755,90603.0,90602.0,0.00113443]
[1764410543656,0.0702755,90603.0,90602.0,0.04594443]
[1764410558963,0.0571455,90603.0,90602.0,0.04594443]
[1764410560165,0.04611,90603.0,90602.0,0.04594443]
[1764410560566,0.05881,90603.0,90602.0,0.10548578]
[1764410561666,0.04611,90603.0,90602.0,0.10548578]
[1764410562266,0.04611,90603.0,90602.0,0.04594443]
[1764410567772,0.001,90603.0,90602.0,0.04594443]
[1764410567971,0.001,90603.0,90602.0,0.05512443]
[1764410568466,0.001,90603.0,90602.0,0.04594443]
[1764410569175,0.02283,90603.0,90602.0,0.04594443]
[1764410569571,0.04614,90603.0,90602.0,0.04594443]
[1764410574971,0.04614,90603.0,90602.0,0.40674443]
[1764410580280,0.04614,90603.0,90602.0,0.04594443]
[1764410580481,0.04614,90603.0,90602.0,0.40674443]
[1764410583080,0.001,90603.0,90602.0,0.41592443]
[1764410583278,0.13033135,90612.0,90602.0,0.41592443]
[1764410583279,0.04547552,90616.0,90615.0,0.055224]
[1764410583479,0.00016552,90616.0,90615.0,0.055224]
[1764410584183,0.00016552,90616.0,90615.0,0.11475383]
[1764410584379,0.00016552,90616.0,90615.0,0.055224]
[1764410585782,0.00616552,90616.0,90615.0,0.056224]
[1764410586876,0.40611,90634.0,90633.0,0.04419]
[1764410587079,0.02264,90634.0,90633.0,0.10368566]
[1764410587278,1.02531,90641.0,90640.0,0.04419]
[1764410587683,1.02531,90641.0,90640.0,0.0552209]
[1764410588186,0.04531,90641.0,90640.0,0.0552209]
[1764410589387,0.05731,90641.0,90640.0,0.0572209]
[1764410589783,0.04631,90641.0,90640.0,0.0552209]
[1764410589982,0.04831,90641.0,90640.0,0.0562209]
[1764410590181,0.04731,90641.0,90640.0,0.0562209]
[1764410594682,0.04731,90641.0,90640.0,0.06704525]
[1764410597596,0.04731,90641.0,90640.0,0.05601435]
[1764410597896,0.04731,90641.0,90640.0,0.01182435]
[1764410601185,0.04731,90641.0,90640.0,0.001]
[1764410614304,0.04731,90641.0,90640.0,0.04711]
[1764410615598,0.0699556,90641.0,90640.0,0.04711]
[1764410617606,0.0699556,90641.0,90640.0,0.0581409]
[1764410618306,0.0699556,90641.0,90640.0,0.04711]
[1764410619106,0.0699556,90641.0,90640.0,0.0581409]
[1764410623821,0.0699556,90641.0,90640.0,0.04711]
[1764410625631,0.04731,90641.0,90640.0,0.04711]
[1764410627226,0.04731,90641.0,90640.0,0.001]
[1764410627927,0.04731,90641.0,90640.0,0.02432]
[1764410628129,0.06997283,90641.0,90640.0,0.06056614]
[1764410629231,0.06997283,90641.0,90640.0,0.001]
[1764410632332,0.06997283,90641.0,90640.0,0.0581409]
[1764410632634,0.06997283,90641.0,90640.0,0.04711]
[1764410632833,0.06997283,90641.0,90640.0,0.001]
[1764410633028,0.06997283,90641.0,90640.0,0.02432]
[1764410633231,0.04731,90641.0,90640.0,0.02432]
[1764410633537,0.06997271,90641.0,90640.0,0.001]
[1764410634036,0.06997271,90641.0,90640.0,0.02432]
[1764410636829,0.06997271,90641.0,90640.0,0.04711]
[1764410643128,0.06997271,90641.0,90640.0,0.0581409]
[1764410644536,0.06997271,90641.0,90640.0,0.04711]
[1764410646241,0.06997271,90641.0,90640.0,0.10667614]
[1764410647836,0.06997271,90641.0,90640.0,0.08388614]
[1764410648232,0.06997271,90641.0,90640.0,0.10708614]
[1764410648540,0.06997271,90641.0,90640.0,0.06056614]
[1764410654551,0.44997271,90641.0,90640.0,0.001]
[1764410654743,0.0547516,90635.0,90634.0,0.05956614]
[1764410654938,0.49741431,90635.0,90634.0,0.05340062]
[1764410655138,0.0547519,90632.0,90631.0,0.00016552]
[1764410655338,0.07741461,90632.0,90631.0,0.00016552]
[1764410656843,0.45841461,90632.0,90631.0,0.00516552]
[1764410658245,0.45841461,90632.0,90631.0,0.00116552]
[1764410658647,0.45741461,90632.0,90631.0,0.00016552]
[1764410658841,0.45941461,90632.0,90631.0,0.00116552]
[1764410662046,0.45947202,90632.0,90631.0,0.00116552]
[1764410662549,0.07947202,90632.0,90631.0,0.00116552]
[1764410665851,0.44027202,90632.0,90631.0,0.00116552]
[1764410671253,0.44027202,90632.0,90631.0,0.02353552]
[1764410671852,0.44027202,90632.0,90631.0,0.00116552]
[1764410676955,0.82027202,90632.0,90631.0,0.00116552]
[1764410679156,0.0548939,90616.0,90615.0,0.05942361]
[1764410679361,0.0548939,90616.0,90615.0,0.0344513]
[1764410679859,0.0548939,90616.0,90615.0,0.0574613]
[1764410680359,0.0548939,90616.0,90615.0,0.0624613]
[1764410680560,0.0568939,90616.0,90615.0,0.0624613]
[1764410681854,0.0568939,90616.0,90615.0,0.005]
[1764410682059,0.4176939,90616.0,90615.0,0.005]
[1764410683861,0.44049871,90616.0,90615.0,0.005]
[1764410684363,0.61417871,90616.0,90615.0,0.005]
[1764410687060,0.61417871,90616.0,90615.0,0.0281]
[1764410688565,0.61417871,90616.0,90615.0,0.005]
[1764410691263,0.61417871,90616.0,90615.0,0.0281]
[1764410691464,0.61417871,90616.0,90615.0,0.005]
[1764410697874,0.25337871,90616.0,90615.0,0.005]
[1764410698176,0.61417871,90616.0,90615.0,0.005]
[1764410700475,0.67360677,90616.0,90615.0,0.05654406]
[1764410701271,1.09360677,90616.0,90615.0,0.05654406]
[1764410701474,1.03417871,90616.0,90615.0,0.005]
[1764410702472,1.09429938,90616.0,90615.0,0.05786694]
[1764410702979,1.09429938,90616.0,90606.0,0.00016552]
[1764410702980,0.011035,90607.0,90606.0,0.00016552]
[1764410703165,0.230345,90607.0,90606.0,0.00016552]
[1764410703369,0.68952518,90607.0,90606.0,0.00016552]
[1764410703577,0.71277585,90607.0,90606.0,0.00016552]
[1764410704072,0.71277585,90607.0,90602.0,0.00013443]
[1764410704073,0.0693555,90603.0,90602.0,0.00013443]
[1764410704277,0.0566274,90587.0,90586.0,0.10352361]
[1764410704479,0.11607203,90587.0,90586.0,0.15674041]
[1764410704977,0.11680334,90587.0,90586.0,0.15674041]
[1764410705279,0.11693777,90587.0,90586.0,0.0973168]
[1764410705671,0.11683621,90587.0,90586.0,0.0973168]
[1764410706074,0.05776183,90587.0,90586.0,0.0993168]
[1764410706275,0.11783621,90587.0,90586.0,0.0993168]
[1764410706677,0.05776183,90587.0,90586.0,0.0993168]
[1764410707190,0.04672443,90587.0,90586.0,0.0993168]
[1764410708382,0.1073112,90587.0,90586.0,0.0993168]
[1764410709087,0.04672443,90587.0,90586.0,0.0461]
[1764410709280,0.04672443,90587.0,90586.0,0.0570125]
[1764410709477,0.10727479,90587.0,90586.0,0.0570125]
[1764410710483,0.04672443,90587.0,90586.0,0.0570125]
[1764410710891,0.10823522,90587.0,90586.0,0.0570125]
[1764410711493,0.04672443,90587.0,90586.0,0.0570125]
[1764410713284,0.00113443,90587.0,90586.0,0.0570125]
[1764410713490,0.02426443,90587.0,90586.0,0.0570125]
[1764410714595,0.04672443,90587.0,90586.0,0.0570125]
[1764410716601,0.10601577,90587.0,90586.0,0.0570125]
[1764410716793,0.04672443,90587.0,90586.0,0.0570125]
[1764410716986,0.10805738,90587.0,90586.0,0.0570125]
[1764410717399,0.04672443,90587.0,90586.0,0.0570125]
[1764410718296,0.1075356,90587.0,90586.0,0.0570125]
[1764410718998,0.0619456,90587.0,90586.0,0.0570125]
[1764410719192,0.00113443,90587.0,90586.0,0.0570125]
[1764410719802,0.06208667,90587.0,90586.0,0.10900143]
[1764410720201,0.06169793,90587.0,90586.0,0.11037565]
[1764410720399,0.06169793,90587.0,90586.0,0.18970319]
[1764410721200,0.00113443,90587.0,90586.0,0.13634004]
[1764410721704,0.06156163,90587.0,90586.0,0.18972064]
[1764410722001,0.05009618,90587.0,90586.0,0.1103931]
[1764410722303,0.00016552,90596.0,90595.0,0.0565464]
[1764410722500,0.06129487,90596.0,90595.0,0.4173464]
[1764410722900,0.00016552,90596.0,90595.0,0.4173464]
[1764410723304,0.06129487,90596.0,90595.0,0.47019031]